[Event "Belt and Road Women 2024"]
[Site "Yuecheng Shaoxing"]
[Date "2024.07.29"]
[Round "6.7"]
[White "Guo, Qi"]
[Black "Yan, Tianqi"]
[Result "1-0"]
[ECO "D24"]
[WhiteElo "2362"]
[BlackElo "2306"]
[Annotator "RC"]
[PlyCount "51"]
[EventDate "2024.08.01"]
[EventType "swiss"]
[EventCountry "CHN"]
[SourceTitle "playchess.com"]
[Source "ChessBase"]
[SourceQuality "1"]
[TimeControl "5400+30"]

1. d4 {[%emt 0:00:02]} Nf6 {[%emt 0:00:10]} 2. c4 {[%emt 0:00:04]} e6 {[%emt 0:00:10]} 3. Nf3 {[%emt 0:00:06]} d5 {[%emt 0:00:10]} 4. Nc3 {[%emt 0:00:08]} dxc4 {[%emt 0:00:18]} 5. e4 {[%emt 0:00:05]} Bb4 {[%emt 0:00:05]} 6. Qc2 {[%emt 0:00:04]} c5 {[%emt 0:07:06]} 7. dxc5 {[%emt 0:00:07]} Qa5 {[%emt 0:12:01]} 8. Bxc4 {[%emt 0:00:09]} Qxc5 {[%emt 0:02:11]} 9. Qe2 {[%emt 0:00:07]} O-O {[%emt 0:03:16]} 10. O-O {[%emt 0:00:08]} Bxc3 {[%emt 0:04:54]} 11. bxc3 {[%emt 0:00:53]} Nc6 {[%emt 0:14:39]} 12. e5 {[%emt 0:00:07]} Nd5 {[%emt 0:01:09]} 13. Re1 {[%emt 0:00:07]} h6 {[%emt 0:19:45]} 14. Qe4 {[%emt 0:00:16]} Nxc3 {[%emt 0:04:33]} 15. Qg4 {[%emt 0:00:11]} Kh8 {[%emt 0:00:48]} 16. Qh4 {[%emt 0:21:07]} Kg8 {[%emt 0:03:35]} 17. Be3 {[%emt 0:11:11]} Qe7 {[%emt 0:03:57]} 18. Bg5 {[%emt 0:01:42]} Qc7 {[%emt 0:00:17]} 19. Bf6 {[%emt 0:01:37]} Nd5 {[%emt 0:11:34]} 20. Bxd5 {[%emt 0:02:30]} exd5 {[%emt 0:00:03]} 21. Qg3 {[%emt 0:00:11]} g6 {[%emt 0:00:05]} 22. Rac1 {[%emt 0:01:28]} Re8 {[%emt 0:02:39]} 23. Qh4 {[%emt 0:05:48]} h5 {[%emt 0:00:10]} 24. Qf4 {[%emt 0:00:02]} Kh7 {[%emt 0:00:06]} 25. Ng5+ {[%emt 0:00:08]} Kg8 {[%emt 0:00:05]} 26. e6 {[%emt 0:00:14]} 1-0

[Event "Belt and Road Women 2024"]
[Site "Yuecheng Shaoxing"]
[Date "2024.07.29"]
[Round "6.8"]
[White "Beydullayeva, Govhar"]
[Black "Pham, Le Thao Nguyen"]
[Result "1-0"]
[ECO "D15"]
[WhiteElo "2417"]
[BlackElo "2395"]
[Annotator "RC"]
[PlyCount "113"]
[EventDate "2024.08.01"]
[EventType "swiss"]
[EventCountry "CHN"]
[SourceTitle "playchess.com"]
[Source "ChessBase"]
[SourceQuality "1"]
[TimeControl "5400+30"]

1. d4 {[%emt 0:00:03]} d5 {[%emt 0:00:22]} 2. c4 {[%emt 0:00:09]} c6 {[%emt 0:00:17]} 3. Nf3 {[%emt 0:00:15]} Nf6 {[%emt 0:00:28]} 4. Nc3 {[%emt 0:00:05]} a6 {[%emt 0:00:29]} 5. c5 {[%emt 0:00:24]} g6 {[%emt 0:00:48]} 6. Bf4 {[%emt 0:02:43]} Bg7 {[%emt 0:00:29]} 7. h3 {[%emt 0:03:16]} O-O {[%emt 0:01:07]} 8. e3 {[%emt 0:01:24]} Nbd7 {[%emt 0:01:23]} 9. Bd3 {[%emt 0:06:31]} Re8 {[%emt 0:01:58]} 10. O-O {[%emt 0:03:06]} Nh5 {[%emt 0:01:59]} 11. Bh2 {[%emt 0:06:33]} e5 {[%emt 0:02:06]} 12. Be2 {[%emt 0:01:46]} exd4 {[%emt 0:03:02]} 13. exd4 {[%emt 0:01:12]} Bh6 {[%emt 0:01:15]} 14. Re1 {[%emt 0:02:52]} Bf4 {[%emt 0:05:43]} 15. Bf1 {[%emt 0:04:13]} Bxh2+ {[%emt 0:03:41]} 16. Kxh2 {[%emt 0:00:31]} Nf8 {[%emt 0:01:41]} 17. Rxe8 {[%emt 0:02:11]} Qxe8 {[%emt 0:00:06]} 18. Qd2 {[%emt 0:01:29]} Be6 {[%emt 0:01:22]} 19. b4 {[%emt 0:11:15]} Qd8 {[%emt 0:04:55]} 20. Re1 {[%emt 0:03:47]} Qf6 {[%emt 0:02:01]} 21. Qg5 {[%emt 0:02:35]} Qxg5 {[%emt 0:07:19]} 22. Nxg5 {[%emt 0:00:11]} h6 {[%emt 0:00:50]} 23. Nf3 {[%emt 0:00:14]} g5 {[%emt 0:01:50]} 24. Nd2 {[%emt 0:04:05]} Ng7 {[%emt 0:02:40]} 25. Nb3 {[%emt 0:02:42]} Nf5 {[%emt 0:01:37]} 26. Bd3 {[%emt 0:08:48]} Ne7 {[%emt 0:03:33]} 27. Na4 {[%emt 0:04:07]} Rb8 {[%emt 0:04:46]} 28. g3 {[%emt 0:03:13]} Kg7 {[%emt 0:02:01]} 29. Kg2 {[%emt 0:00:04]} h5 {[%emt 0:02:05]} 30. Nc3 {[%emt 0:01:20]} h4 {[%emt 0:10:25]} 31. a4 {[%emt 0:06:13]} Nfg6 {[%emt 0:05:47]} 32. Ne2 {[%emt 0:01:05]} hxg3 {[%emt 0:08:33]} 33. fxg3 {[%emt 0:00:03]} Rh8 {[%emt 0:00:14]} 34. Ng1 {[%emt 0:01:34]} Bd7 {[%emt 0:03:51]} 35. Na5 {[%emt 0:02:46]} Bc8 {[%emt 0:01:16]} 36. b5 {[%emt 0:05:00]} axb5 {[%emt 0:00:30]} 37. axb5 {[%emt 0:00:02]} cxb5 {[%emt 0:00:51]} 38. Bxg6 {[%emt 0:01:23]} Nxg6 {[%emt 0:00:39]} 39. Rb1 {[%emt 0:00:02]} Bf5 {[%emt 0:01:14]} 40. Rb2 {[%emt 0:02:46]} Nf8 {[%emt 0:02:23]} 41. Nxb7 {[%emt 0:00:45]} Be4+ {[%emt 0:00:08]} 42. Kf2 {[%emt 0:01:29]} Ne6 {[%emt 0:00:16]} 43. Ne2 {[%emt 0:05:22]} Rxh3 {[%emt 0:01:32]} 44. c6 {[%emt 0:00:51]} Bd3 {[%emt 0:04:42]} 45. Nc5 {[%emt 0:01:13]} Nxc5 {[%emt 0:04:25]} 46. dxc5 {[%emt 0:00:28]} Kf6 {[%emt 0:00:22]} 47. Nd4 {[%emt 0:01:06]} g4 {[%emt 0:01:34]} 48. Rb3 {[%emt 0:00:18]} Bc4 {[%emt 0:00:43]} 49. Ra3 {[%emt 0:00:17]} Rh8 {[%emt 0:00:46]} 50. Ra7 {[%emt 0:00:53]} b4 {[%emt 0:00:59]} 51. Rb7 {[%emt 0:00:37]} b3 {[%emt 0:00:44]} 52. Ke3 {[%emt 0:00:39]} Rc8 {[%emt 0:01:12]} 53. Kd2 {[%emt 0:00:16]} Kg6 {[%emt 0:00:47]} 54. c7 {[%emt 0:00:37]} Kf6 {[%emt 0:00:29]} 55. Nc6 {[%emt 0:00:32]} Ke6 {[%emt 0:01:06]} 56. Na7 {[%emt 0:00:10]} Kd7 {[%emt 0:00:09]} 57. c6+ {[%emt 0:00:11]} 1-0

[Event "Belt and Road Women 2024"]
[Site "Yuecheng Shaoxing"]
[Date "2024.07.29"]
[Round "6.9"]
[White "Kurmangaliyeva, Liya"]
[Black "Wang, Qinxuanyi"]
[Result "1/2-1/2"]
[ECO "B30"]
[WhiteElo "2282"]
[BlackElo "2149"]
[Annotator "RC"]
[PlyCount "55"]
[EventDate "2024.08.01"]
[EventType "swiss"]
[EventCountry "CHN"]
[SourceTitle "playchess.com"]
[Source "ChessBase"]
[SourceQuality "1"]
[TimeControl "5400+30"]

1. e4 {[%emt 0:00:08]} c5 {[%emt 0:00:05]} 2. Nf3 {[%emt 0:00:23]} Nc6 {[%emt 0:00:06]} 3. Bb5 {[%emt 0:00:20]} e6 {[%emt 0:00:08]} 4. Bxc6 {[%emt 0:00:52]} bxc6 {[%emt 0:00:05]} 5. b3 {[%emt 0:00:14]} f6 {[%emt 0:00:06]} 6. d3 {[%emt 0:00:42]} e5 {[%emt 0:03:38]} 7. Nh4 {[%emt 0:00:27]} Ne7 {[%emt 0:02:38]} 8. f4 {[%emt 0:00:20]} exf4 {[%emt 0:03:01]} 9. Bxf4 {[%emt 0:00:13]} d5 {[%emt 0:01:31]} 10. O-O {[%emt 0:00:29]} dxe4 {[%emt 0:00:59]} 11. Nd2 {[%emt 0:00:29]} Qd4+ {[%emt 0:05:51]} 12. Kh1 {[%emt 0:00:17]} exd3 {[%emt 0:00:05]} 13. Nc4 {[%emt 0:00:16]} Be6 {[%emt 0:03:24]} 14. Qe1 {[%emt 0:22:07]} Bxc4 {[%emt 0:11:51]} 15. bxc4 {[%emt 0:01:22]} Kf7 {[%emt 0:03:31]} 16. cxd3 {[%emt 0:15:27]} Re8 {[%emt 0:11:38]} 17. Rb1 {[%emt 0:20:55]} Qd7 {[%emt 0:04:56]} 18. Qa5 {[%emt 0:01:45]} Ng6 {[%emt 0:02:46]} 19. Qa6 {[%emt 0:01:11]} Be7 {[%emt 0:04:51]} 20. Nxg6 {[%emt 0:09:54]} hxg6 {[%emt 0:01:06]} 21. Rfe1 {[%emt 0:00:37]} g5 {[%emt 0:11:23]} 22. Rb7 {[%emt 0:05:56]} Qxd3 {[%emt 0:02:15]} 23. Qxc6 {[%emt 0:09:55]} gxf4 {[%emt 0:00:11]} 24. Qe6+ {[%emt 0:00:04]} Kg6 {[%emt 0:00:04]} 25. Qg4+ {[%emt 0:00:06]} Kf7 {[%emt 0:00:03]} 26. Qe6+ {[%emt 0:00:13]} Kg6 {[%emt 0:00:04]} 27. Qg4+ {[%emt 0:00:05]} Kf7 {[%emt 0:00:33]} 28. Qe6+ {[%emt 0:00:30]} 1/2-1/2

[Event "Belt and Road Women 2024"]
[Site "Yuecheng Shaoxing"]
[Date "2024.07.29"]
[Round "6.10"]
[White "Garifullina, Leya"]
[Black "Gu, Xiaobing"]
[Result "1-0"]
[ECO "A59"]
[WhiteElo "2458"]
[BlackElo "2135"]
[Annotator "RC"]
[PlyCount "81"]
[EventDate "2024.08.01"]
[EventType "swiss"]
[EventCountry "CHN"]
[SourceTitle "playchess.com"]
[Source "ChessBase"]
[SourceQuality "1"]
[TimeControl "5400+30"]

1. d4 {[%emt 0:00:05]} Nf6 {[%emt 0:01:13]} 2. c4 {[%emt 0:00:08]} c5 {[%emt 0:03:24]} 3. d5 {[%emt 0:00:46]} b5 {[%emt 0:00:12]} 4. cxb5 {[%emt 0:00:09]} a6 {[%emt 0:00:03]} 5. bxa6 {[%emt 0:00:07]} Bxa6 {[%emt 0:00:02]} 6. Nc3 {[%emt 0:00:23]} d6 {[%emt 0:00:10]} 7. Nf3 {[%emt 0:01:27]} g6 {[%emt 0:00:07]} 8. e4 {[%emt 0:00:06]} Bxf1 {[%emt 0:00:19]} 9. Kxf1 {[%emt 0:00:05]} Bg7 {[%emt 0:00:10]} 10. g3 {[%emt 0:00:07]} O-O {[%emt 0:00:07]} 11. Kg2 {[%emt 0:00:04]} Nbd7 {[%emt 0:00:36]} 12. Bd2 {[%emt 0:01:26]} Ra6 {[%emt 0:13:08]} 13. Qc2 {[%emt 0:06:37]} Qa8 {[%emt 0:00:20]} 14. a4 {[%emt 0:00:44]} Rb8 {[%emt 0:00:12]} 15. Ra3 {[%emt 0:01:03]} e6 {[%emt 0:12:22]} 16. dxe6 {[%emt 0:01:32]} fxe6 {[%emt 0:00:04]} 17. Re1 {[%emt 0:04:42]} d5 {[%emt 0:21:28]} 18. exd5 {[%emt 0:05:02]} exd5 {[%emt 0:03:17]} 19. Nb5 {[%emt 0:00:51]} Rab6 {[%emt 0:14:59]} 20. Ng5 {[%emt 0:04:12]} Qa6 {[%emt 0:09:00]} 21. Rae3 {[%emt 0:07:38]} Nf8 {[%emt 0:07:27]} 22. Re7 {[%emt 0:02:21]} R6b7 {[%emt 0:00:06]} 23. b3 {[%emt 0:01:01]} Rxe7 {[%emt 0:01:01]} 24. Rxe7 {[%emt 0:00:08]} Qc6 {[%emt 0:00:18]} 25. Rc7 {[%emt 0:00:21]} Qe8 {[%emt 0:00:16]} 26. Qxc5 {[%emt 0:00:56]} h6 {[%emt 0:05:24]} 27. Qa7 {[%emt 0:01:14]} N8d7 {[%emt 0:00:13]} 28. Nf3 {[%emt 0:00:18]} Ra8 {[%emt 0:01:49]} 29. Qe3 {[%emt 0:00:14]} Qf8 {[%emt 0:00:31]} 30. Qe6+ {[%emt 0:00:12]} Kh8 {[%emt 0:00:39]} 31. Rxd7 {[%emt 0:01:28]} Re8 {[%emt 0:00:03]} 32. Qf7 {[%emt 0:00:28]} Nxd7 {[%emt 0:00:02]} 33. Qxd7 {[%emt 0:00:06]} g5 {[%emt 0:00:44]} 34. h4 {[%emt 0:00:59]} Re7 {[%emt 0:01:46]} 35. Qxd5 {[%emt 0:00:27]} g4 {[%emt 0:00:05]} 36. Nfd4 {[%emt 0:01:38]} Re5 {[%emt 0:00:46]} 37. Qc6 {[%emt 0:00:21]} h5 {[%emt 0:02:46]} 38. Bf4 {[%emt 0:00:43]} Re1 {[%emt 0:00:27]} 39. Ne6 {[%emt 0:02:05]} Qg8 {[%emt 0:03:44]} 40. Nxg7 {[%emt 0:00:42]} Qxg7 {[%emt 0:00:02]} 41. Bd2 {[%emt 0:00:22]} 1-0

[Event "Belt and Road Women 2024"]
[Site "Yuecheng Shaoxing"]
[Date "2024.07.29"]
[Round "6.11"]
[White "Wang, Yu A."]
[Black "Chen, Yining"]
[Result "1/2-1/2"]
[ECO "B13"]
[WhiteElo "2234"]
[BlackElo "2300"]
[Annotator "RC"]
[PlyCount "61"]
[EventDate "2024.08.01"]
[EventType "swiss"]
[EventCountry "CHN"]
[SourceTitle "playchess.com"]
[Source "ChessBase"]
[SourceQuality "1"]
[TimeControl "5400+30"]

1. e4 {[%emt 0:00:01]} c6 {[%emt 0:00:10]} 2. d4 {[%emt 0:00:40]} d5 {[%emt 0:00:07]} 3. exd5 {[%emt 0:00:05]} cxd5 {[%emt 0:00:07]} 4. Bd3 {[%emt 0:00:04]} Nf6 {[%emt 0:00:17]} 5. Nf3 {[%emt 0:05:01]} Nc6 {[%emt 0:01:42]} 6. c3 {[%emt 0:01:13]} Bg4 {[%emt 0:00:30]} 7. h3 {[%emt 0:11:24]} Bh5 {[%emt 0:00:32]} 8. Bf4 {[%emt 0:01:36]} e6 {[%emt 0:02:31]} 9. Nbd2 {[%emt 0:01:27]} Bd6 {[%emt 0:00:19]} 10. Bxd6 {[%emt 0:00:53]} Qxd6 {[%emt 0:00:06]} 11. O-O {[%emt 0:02:22]} O-O {[%emt 0:00:11]} 12. Re1 {[%emt 0:05:24]} Rfe8 {[%emt 0:00:18]} 13. Qb3 {[%emt 0:07:36]} Rab8 {[%emt 0:10:31]} 14. Ne5 {[%emt 0:01:23]} Nd7 {[%emt 0:03:42]} 15. Nxd7 {[%emt 0:02:08]} Qxd7 {[%emt 0:01:37]} 16. Qc2 {[%emt 0:00:56]} Bg6 {[%emt 0:01:40]} 17. Bxg6 {[%emt 0:00:17]} hxg6 {[%emt 0:00:05]} 18. Nf3 {[%emt 0:00:29]} b5 {[%emt 0:02:45]} 19. a3 {[%emt 0:00:30]} a5 {[%emt 0:01:53]} 20. Ne5 {[%emt 0:01:49]} Nxe5 {[%emt 0:00:39]} 21. Rxe5 {[%emt 0:00:02]} b4 {[%emt 0:03:03]} 22. axb4 {[%emt 0:02:13]} axb4 {[%emt 0:00:03]} 23. c4 {[%emt 0:19:33]} dxc4 {[%emt 0:13:51]} 24. Qxc4 {[%emt 0:00:01]} Red8 {[%emt 0:00:46]} 25. Rd1 {[%emt 0:00:23]} Qb7 {[%emt 0:02:41]} 26. Rc5 {[%emt 0:08:22]} Rd6 {[%emt 0:07:30]} 27. Rc7 {[%emt 0:02:29]} Qb6 {[%emt 0:00:53]} 28. Qc5 {[%emt 0:05:47]} Qxc5 {[%emt 0:05:10]} 29. Rxc5 {[%emt 0:00:02]} Kf8 {[%emt 0:00:46]} 30. Rc7 {[%emt 0:03:38]} Ke8 {[%emt 0:01:36]} 31. Kf1 {[%emt 0:02:44]} 1/2-1/2

[Event "Belt and Road Women 2024"]
[Site "Yuecheng Shaoxing"]
[Date "2024.07.29"]
[Round "6.12"]
[White "Zhang, Xiao"]
[Black "Soumya, Swaminathan"]
[Result "1-0"]
[ECO "E74"]
[WhiteElo "2193"]
[BlackElo "2258"]
[Annotator "RC"]
[PlyCount "85"]
[EventDate "2024.08.01"]
[EventType "swiss"]
[EventCountry "CHN"]
[SourceTitle "playchess.com"]
[Source "ChessBase"]
[SourceQuality "1"]
[TimeControl "5400+30"]

1. d4 {[%emt 0:00:03]} g6 {[%emt 0:00:18]} 2. c4 {[%emt 0:00:42]} Nf6 {[%emt 0:00:19]} 3. Nc3 {[%emt 0:00:09]} Bg7 {[%emt 0:00:05]} 4. e4 {[%emt 0:00:38]} d6 {[%emt 0:00:03]} 5. Be2 {[%emt 0:01:05]} O-O {[%emt 0:00:09]} 6. Bg5 {[%emt 0:00:43]} c5 {[%emt 0:00:07]} 7. d5 {[%emt 0:00:11]} h6 {[%emt 0:00:04]} 8. Bf4 {[%emt 0:00:26]} e6 {[%emt 0:26:03]} 9. dxe6 {[%emt 0:00:15]} Bxe6 {[%emt 0:00:02]} 10. Bxd6 {[%emt 0:00:06]} Re8 {[%emt 0:00:07]} 11. e5 {[%emt 0:00:05]} Nfd7 {[%emt 0:03:12]} 12. f4 {[%emt 0:00:08]} Nc6 {[%emt 0:07:06]} 13. Nf3 {[%emt 0:00:20]} g5 {[%emt 0:08:42]} 14. g3 {[%emt 0:07:24]} gxf4 {[%emt 0:11:05]} 15. gxf4 {[%emt 0:01:09]} Nd4 {[%emt 0:00:03]} 16. O-O {[%emt 0:09:15]} Nf5 {[%emt 0:20:01]} 17. Qd2 {[%emt 0:02:20]} Qb6 {[%emt 0:02:05]} 18. Ne4 {[%emt 0:13:34]} Rad8 {[%emt 0:00:07]} 19. Bd3 {[%emt 0:02:51]} Kh8 {[%emt 0:01:53]} 20. Qf2 {[%emt 0:05:24]} Rg8 {[%emt 0:02:27]} 21. Kh1 {[%emt 0:00:09]} Qc6 {[%emt 0:00:59]} 22. Rae1 {[%emt 0:00:55]} b6 {[%emt 0:03:00]} 23. h4 {[%emt 0:10:33]} Qb7 {[%emt 0:04:24]} 24. Kh2 {[%emt 0:01:58]} Nb8 {[%emt 0:02:10]} 25. b3 {[%emt 0:01:58]} Nc6 {[%emt 0:00:53]} 26. Bb1 {[%emt 0:00:34]} Qc8 {[%emt 0:01:26]} 27. Rg1 {[%emt 0:01:12]} Qd7 {[%emt 0:03:42]} 28. Rg2 {[%emt 0:01:00]} Nxd6 {[%emt 0:01:49]} 29. Nxd6 {[%emt 0:00:15]} f6 {[%emt 0:00:57]} 30. Qc2 {[%emt 0:13:05]} Bf8 {[%emt 0:00:12]} 31. Reg1 {[%emt 0:07:14]} fxe5 {[%emt 0:01:11]} 32. Rxg8+ {[%emt 0:00:13]} Bxg8 {[%emt 0:00:05]} 33. Qg6 {[%emt 0:00:34]} Qg7 {[%emt 0:00:21]} 34. Qf5 {[%emt 0:02:04]} Rxd6 {[%emt 0:00:39]} 35. Rxg7 {[%emt 0:00:08]} Bxg7 {[%emt 0:00:06]} 36. fxe5 {[%emt 0:02:01]} Re6 {[%emt 0:01:16]} 37. Be4 {[%emt 0:00:32]} Nd4 {[%emt 0:00:58]} 38. Nxd4 {[%emt 0:01:03]} Rxe5 {[%emt 0:00:06]} 39. Qc8 {[%emt 0:01:47]} Rxe4 {[%emt 0:00:07]} 40. Nf5 {[%emt 0:00:03]} Be5+ {[%emt 0:01:31]} 41. Kh3 {[%emt 0:00:24]} Bf6 {[%emt 0:00:34]} 42. Qf8 {[%emt 0:00:23]} Re6 {[%emt 0:00:33]} 43. Nxh6 {[%emt 0:00:12]} 1-0

[Event "Belt and Road Women 2024"]
[Site "Yuecheng Shaoxing"]
[Date "2024.07.29"]
[Round "6.13"]
[White "Li, Xueyi"]
[Black "Yang, Yijing"]
[Result "0-1"]
[ECO "E64"]
[WhiteElo "2209"]
[BlackElo "2022"]
[Annotator "RC"]
[PlyCount "102"]
[EventDate "2024.08.01"]
[EventType "swiss"]
[EventCountry "CHN"]
[SourceTitle "playchess.com"]
[Source "ChessBase"]
[SourceQuality "1"]
[TimeControl "5400+30"]

1. d4 {[%emt 0:00:04]} Nf6 {[%emt 0:00:07]} 2. c4 {[%emt 0:00:10]} g6 {[%emt 0:00:09]} 3. g3 {[%emt 0:00:06]} Bg7 {[%emt 0:00:07]} 4. Bg2 {[%emt 0:00:04]} O-O {[%emt 0:00:07]} 5. Nc3 {[%emt 0:00:02]} c5 {[%emt 0:00:10]} 6. d5 {[%emt 0:00:36]} e6 {[%emt 0:00:19]} 7. Nf3 {[%emt 0:01:24]} exd5 {[%emt 0:00:19]} 8. Nxd5 {[%emt 0:05:30]} Nxd5 {[%emt 0:00:16]} 9. Qxd5 {[%emt 0:12:43]} d6 {[%emt 0:05:22]} 10. O-O {[%emt 0:00:00]} Nc6 {[%emt 0:12:11]} 11. Bf4 {[%emt 0:04:19]} Be6 {[%emt 0:05:12]} 12. Qd3 {[%emt 0:20:02]} d5 {[%emt 0:12:11]} 13. Bg5 {[%emt 0:08:22]} dxc4 {[%emt 0:03:22]} 14. Qe3 {[%emt 0:00:48]} Qb6 {[%emt 0:09:59]} 15. Bh6 {[%emt 0:00:20]} Nd4 {[%emt 0:11:53]} 16. Bxg7 {[%emt 0:08:32]} Nxf3+ {[%emt 0:00:26]} 17. Bxf3 {[%emt 0:01:08]} Kxg7 {[%emt 0:00:08]} 18. Qc3+ {[%emt 0:00:02]} f6 {[%emt 0:02:44]} 19. h4 {[%emt 0:00:19]} h5 {[%emt 0:06:48]} 20. Qe3 {[%emt 0:09:55]} Rfe8 {[%emt 0:16:22]} 21. Rad1 {[%emt 0:08:37]} Bf7 {[%emt 0:00:00]} 22. Qc3 {[%emt 0:02:10]} Rad8 {[%emt 0:00:00]} 23. e3 {[%emt 0:00:57]} Qb5 {[%emt 0:00:00]} 24. Qc2 {[%emt 0:04:17]} b6 {[%emt 0:00:00]} 25. a4 {[%emt 0:02:09]} Qb3 {[%emt 0:01:01]} 26. Rc1 {[%emt 0:00:29]} Re7 {[%emt 0:08:06]} 27. Be2 {[%emt 0:01:13]} c3 {[%emt 0:01:26]} 28. Qxc3 {[%emt 0:00:58]} Qxa4 {[%emt 0:00:17]} 29. Rcd1 {[%emt 0:04:37]} Red7 {[%emt 0:00:55]} 30. Rxd7 {[%emt 0:00:10]} Rxd7 {[%emt 0:00:45]} 31. Qc1 {[%emt 0:00:19]} Qe4 {[%emt 0:01:09]} 32. f3 {[%emt 0:01:10]} Qe5 {[%emt 0:01:55]} 33. Kf2 {[%emt 0:00:54]} Bb3 {[%emt 0:01:00]} 34. Rg1 {[%emt 0:01:04]} Qd6 {[%emt 0:01:30]} 35. Qc3 {[%emt 0:00:48]} c4 {[%emt 0:00:21]} 36. g4 {[%emt 0:02:44]} Qh2+ {[%emt 0:00:03]} 37. Rg2 {[%emt 0:00:05]} Qxh4+ {[%emt 0:00:05]} 38. Kg1 {[%emt 0:00:02]} Bd1 {[%emt 0:01:59]} 39. Rh2 {[%emt 0:00:43]} Qg3+ {[%emt 0:00:03]} 40. Rg2 {[%emt 0:00:09]} Qe5 {[%emt 0:00:34]} 41. Qxe5 {[%emt 0:01:08]} fxe5 {[%emt 0:00:02]} 42. gxh5 {[%emt 0:00:06]} Bxe2 {[%emt 0:00:04]} 43. Rxe2 {[%emt 0:00:02]} gxh5 {[%emt 0:00:04]} 44. Kg2 {[%emt 0:00:20]} b5 {[%emt 0:00:11]} 45. Kg3 {[%emt 0:00:12]} b4 {[%emt 0:00:29]} 46. Rc2 {[%emt 0:00:07]} Rc7 {[%emt 0:00:11]} 47. f4 {[%emt 0:00:05]} Kf6 {[%emt 0:00:27]} 48. Kf3 {[%emt 0:00:09]} exf4 {[%emt 0:00:23]} 49. Kxf4 {[%emt 0:00:42]} a5 {[%emt 0:00:57]} 50. Ke4 {[%emt 0:00:31]} c3 {[%emt 0:00:50]} 51. bxc3 {[%emt 0:00:00]} Rxc3 {[%emt 0:00:25]} 0-1

[Event "Belt and Road Women 2024"]
[Site "Yuecheng Shaoxing"]
[Date "2024.07.29"]
[Round "6.14"]
[White "Bai, Xue"]
[Black "Velikic, Adela"]
[Result "1-0"]
[ECO "B32"]
[WhiteElo "2114"]
[BlackElo "2290"]
[Annotator "RC"]
[PlyCount "101"]
[EventDate "2024.08.01"]
[EventType "swiss"]
[EventCountry "CHN"]
[SourceTitle "playchess.com"]
[Source "ChessBase"]
[SourceQuality "1"]
[TimeControl "5400+30"]

1. e4 {[%emt 0:00:03]} c5 {[%emt 0:00:07]} 2. Nf3 {[%emt 0:00:06]} Nc6 {[%emt 0:00:05]} 3. d4 {[%emt 0:00:05]} cxd4 {[%emt 0:00:07]} 4. Nxd4 {[%emt 0:00:06]} e5 {[%emt 0:00:05]} 5. Nb5 {[%emt 0:00:05]} d6 {[%emt 0:00:08]} 6. N1c3 {[%emt 0:00:06]} a6 {[%emt 0:00:11]} 7. Na3 {[%emt 0:00:06]} Be7 {[%emt 0:00:07]} 8. Nd5 {[%emt 0:04:05]} Nf6 {[%emt 0:00:16]} 9. Nxf6+ {[%emt 0:04:22]} Bxf6 {[%emt 0:00:08]} 10. Nc4 {[%emt 0:00:53]} O-O {[%emt 0:00:41]} 11. Be3 {[%emt 0:04:32]} Be6 {[%emt 0:00:35]} 12. Nb6 {[%emt 0:00:54]} Rb8 {[%emt 0:00:36]} 13. Nd5 {[%emt 0:02:28]} Bg5 {[%emt 0:01:00]} 14. Qd2 {[%emt 0:03:40]} Bxe3 {[%emt 0:03:52]} 15. Nxe3 {[%emt 0:00:06]} Rc8 {[%emt 0:07:09]} 16. Bd3 {[%emt 0:07:22]} Ne7 {[%emt 0:08:57]} 17. O-O {[%emt 0:05:05]} Qb6 {[%emt 0:10:55]} 18. b3 {[%emt 0:06:57]} Rfd8 {[%emt 0:09:27]} 19. Rfd1 {[%emt 0:06:29]} Qc7 {[%emt 0:14:13]} 20. c4 {[%emt 0:06:11]} g6 {[%emt 0:02:41]} 21. Rac1 {[%emt 0:06:48]} Rf8 {[%emt 0:06:16]} 22. Bb1 {[%emt 0:11:34]} Rcd8 {[%emt 0:00:12]} 23. Rc3 {[%emt 0:04:47]} f5 {[%emt 0:05:26]} 24. Nd5 {[%emt 0:00:54]} Bxd5 {[%emt 0:04:50]} 25. cxd5 {[%emt 0:00:06]} Qb6 {[%emt 0:10:22]} 26. exf5 {[%emt 0:04:27]} Nxf5 {[%emt 0:00:09]} 27. Bxf5 {[%emt 0:00:06]} Rxf5 {[%emt 0:00:05]} 28. Qe3 {[%emt 0:00:06]} Qa5 {[%emt 0:02:31]} 29. a4 {[%emt 0:01:27]} Rdf8 {[%emt 0:00:53]} 30. f3 {[%emt 0:01:21]} Rf4 {[%emt 0:00:55]} 31. Rcc1 {[%emt 0:00:54]} Qb4 {[%emt 0:04:41]} 32. h3 {[%emt 0:00:48]} Qa5 {[%emt 0:03:32]} 33. Rc2 {[%emt 0:00:26]} Rb4 {[%emt 0:01:40]} 34. Kh2 {[%emt 0:02:18]} Qd8 {[%emt 0:01:59]} 35. Rdc1 {[%emt 0:01:01]} Qh4 {[%emt 0:02:02]} 36. Rc4 {[%emt 0:00:53]} Rxc4 {[%emt 0:00:37]} 37. Rxc4 {[%emt 0:00:04]} Qe7 {[%emt 0:00:44]} 38. Qb6 {[%emt 0:00:33]} Rf7 {[%emt 0:00:32]} 39. b4 {[%emt 0:03:12]} Kg7 {[%emt 0:00:28]} 40. b5 {[%emt 0:00:17]} axb5 {[%emt 0:00:09]} 41. axb5 {[%emt 0:00:06]} h5 {[%emt 0:00:49]} 42. Qe3 {[%emt 0:00:49]} Qd7 {[%emt 0:00:37]} 43. Qb3 {[%emt 0:02:56]} Qd8 {[%emt 0:00:35]} 44. b6 {[%emt 0:00:49]} Kh6 {[%emt 0:00:32]} 45. Qe3+ {[%emt 0:00:09]} Kg7 {[%emt 0:00:30]} 46. h4 {[%emt 0:00:37]} Qf6 {[%emt 0:00:27]} 47. Qg5 {[%emt 0:02:43]} Qf5 {[%emt 0:00:01]} 48. Rc7 {[%emt 0:01:43]} Qd3 {[%emt 0:00:34]} 49. f4 {[%emt 0:04:45]} Qf5 {[%emt 0:00:59]} 50. fxe5 {[%emt 0:00:51]} Qb1 {[%emt 0:00:30]} 51. Qf6+ {[%emt 0:00:09]} 1-0